bitfinex/quotes_ETHUSD_20250217
["timestamp","ask_amount","ask_price","bid_price","bid_amount"]
[1739783850120,4.90924,2725.2,2724.8,0.05593023]
[1739783850321,0.490924,2725.1,2724.3,4.49051]
[1739783850557,3.6698,2725.0,2724.9,0.05593023]
[1739783850864,3.6698,2725.0,2724.4,3.67044]
[1739783851055,3.6698,2725.0,2724.3,4.49051]
[1739783851364,3.6698,2725.0,2724.5,3.72635943]
[1739783851514,0.4160724,2724.9,2724.5,3.67039]
[1739783851851,3.67012,2724.7,2724.6,0.05598511]
[1739783852365,3.67044,2724.5,2723.9,7.34224]
[1739783852525,3.67044,2724.5,2723.9,3.6711]
[1739783852706,4.50045,2724.3,2723.7,0.7513]
[1739783852911,3.67102,2724.1,2723.5,3.67169]
[1739783853107,0.8008,2723.8,2723.1,0.7568]
[1739783853339,0.8008,2723.8,2723.3,3.67188]
[1739783853648,4.47217,2723.8,2723.1,4.42908]
[1739783853808,5.314405,2723.8,2723.1,4.42899]
[1739783854122,1.643035,2723.8,2723.1,0.7568]
[1739783854320,1.643035,2723.8,2723.4,3.67182]
[1739783855111,1.643035,2723.8,2723.2,7.34415]
[1739783855307,1.643035,2723.8,2723.2,3.67206]
[1739783855512,5.314385,2723.8,2723.2,3.67206]
[1739783855712,3.67148,2723.7,2723.0,3.67234]
[1739783855910,5.314385,2723.8,2723.0,3.67234]
[1739783856247,1.643035,2723.8,2723.0,0.447014]
[1739783856545,1.643035,2723.8,2723.2,3.67208]
[1739783856754,3.67149,2723.7,2723.2,3.67208]
[1739783857058,3.67149,2723.7,2723.0,3.67231]
[1739783857406,0.7992,2723.6,2722.4,6.1587]
[1739783857628,3.67174,2723.5,2722.7,3.67269]
[1739783858031,0.7738,2723.2,2722.7,3.67269]
[1739783858544,0.7738,2723.2,2722.3,3.67329]
[1739783858545,3.67236,2723.1,2722.3,3.67329]
[1739783858845,3.67252,2723.0,2722.4,3.6731]
[1739783859141,3.67258,2722.9,2722.3,3.67329]
[1739783859344,7.789353,2723.1,2722.4,3.67314]
[1739783859529,3.67243,2723.0,2722.4,3.67314]
[1739783859846,4.5566473,2723.0,2722.5,3.67307]
[1739783860415,4.5566473,2723.0,2722.4,3.67318]
[1739783860623,4.5566473,2723.0,2722.5,3.67302]
[1739783860930,0.8842173,2723.0,2722.5,3.67302]
[1739783861746,0.8842173,2723.0,2722.6,0.05227349]
[1739783862455,4.5566473,2723.0,2722.6,0.05227349]
[1739783862654,0.8842173,2723.0,2722.7,3.67273]
[1739783862819,3.6723,2723.1,2722.6,0.05227349]
[1739783863018,4.72508,2723.2,2722.1,4.4244]
[1739783863254,3.6725,2723.0,2722.2,0.05227349]
[1739783863445,3.6725,2723.0,2722.4,3.67315]
[1739783863840,3.6725,2723.0,2722.5,0.05370924]
[1739783864155,4.512252,2723.0,2722.5,3.72675924]
[1739783864354,0.839752,2723.0,2722.5,3.67302]
[1739783864560,0.839752,2723.0,2722.6,3.72662924]
[1739783865277,0.839752,2723.0,2722.6,0.05370924]
[1739783865423,4.46756,2722.9,2722.6,0.05370924]
[1739783865630,4.46756,2722.9,2722.4,3.67316]
[1739783865881,4.46756,2722.9,2722.7,0.05370924]
[1739783866173,4.46756,2722.9,2722.3,3.67327]
[1739783866524,4.46756,2722.9,2722.4,0.05370924]
[1739783866858,5.28155,2722.9,2722.4,0.05370924]
[1739783867061,5.28155,2722.9,2722.4,3.72692924]
[1739783868257,1.60899,2722.9,2722.4,0.05370924]
[1739783868553,3.6728,2722.8,2722.4,0.05370924]
[1739783868759,3.67285,2722.7,2722.2,3.67342]
[1739783868967,3.67285,2722.7,2722.5,0.05370924]
[1739783869176,3.67285,2722.7,2722.2,3.67342]
[1739783869326,3.67285,2722.7,2722.6,0.05402327]
[1739783869526,12.87085,2722.7,2722.1,3.6736]
[1739783869761,3.67367,2722.1,2721.3,1.50046762]
[1739783869968,0.8063,2722.0,2721.5,3.67443]
[1739783870134,0.8063,2722.0,2721.3,0.7776]
[1739783870135,0.8063,2722.0,2721.7,3.6741]
[1739783870335,0.279,2722.0,2721.8,3.67394]
[1739783870534,0.279,2722.0,2721.8,3.67403]
[1739783870741,0.279,2722.0,2721.9,3.6739]
[1739783870945,0.8063,2722.4,2722.1,3.67363]
[1739783871161,0.28,2722.3,2722.1,3.67355]
[1739783872172,0.7873705,2722.6,2721.8,0.8064]
[1739783872479,0.8327,2723.1,2722.6,3.67284]
[1739783872769,0.28,2722.9,2722.6,3.67284]
[1739783872951,0.7512,2722.7,2722.3,3.67334]
[1739783873155,0.28,2722.9,2721.8,0.8064]
[1739783873328,0.28,2722.9,2722.6,3.67287]
[1739783874225,0.28,2722.9,2722.1,3.67359]
[1739783874226,0.7845,2723.0,2722.2,3.67347]
[1739783874430,0.7845,2723.0,2722.6,3.67293]
[1739783874627,0.28,2722.9,2722.6,3.67285]
[1739783874853,0.7845,2723.0,2722.9,3.67255]
[1739783875053,0.28,2723.1,2722.8,3.67268]
[1739783875363,4.42724,2723.0,2722.5,3.67308]
[1739783875542,0.7548,2723.0,2722.5,7.34609]
[1739783876377,0.7548,2723.0,2722.5,3.67301]
[1739783876782,0.7548,2723.0,2722.6,0.05233311]
[1739783877075,1.2650333,2723.0,2722.6,0.05233311]
[1739783877487,1.2650333,2723.0,2722.6,3.72528311]
[1739783879436,1.2650333,2723.0,2722.6,0.05233311]
[1739783879657,0.7548,2723.0,2722.8,3.67261]
[1739783879858,0.7548,2723.0,2722.9,3.67255]
[1739783880054,0.28,2723.1,2722.9,0.05233311]
[1739783880289,0.28,2723.1,2722.9,3.72487311]
[1739783880474,0.28,2723.1,2722.9,3.67254]
[1739783880672,0.28,2723.1,2723.0,0.0522389]
[1739783881070,0.28,2723.1,2722.8,3.67261]
[1739783881275,0.28,2723.1,2723.0,0.0522389]
[1739783881583,0.755704,2723.1,2722.7,3.6728]
[1739783881777,0.755704,2723.1,2723.0,0.0522389]
[1739783881965,0.805,2723.3,2722.4,3.67319]
[1739783882166,0.28,2723.2,2723.0,0.0522389]
[1739783882401,3.95223,2723.2,2722.4,3.67314]
[1739783882548,3.95223,2723.2,2723.1,0.0522389]
[1739783882747,3.67235,2723.1,2722.5,3.67309]
[1739783883053,0.28,2723.2,2722.8,3.67258]
[1739783883794,0.28,2723.2,2723.0,3.67234]
[1739783883946,0.28,2723.2,2722.9,3.67245]
[1739783884349,0.805,2723.3,2722.8,0.7561]
[1739783884696,3.67216,2723.2,2722.5,0.769]
[1739783884988,3.67216,2723.2,2722.2,3.0]
[1739783884989,3.67216,2723.2,2722.6,7.34574]
[1739783885139,0.7748,2722.6,2722.2,3.67342]
[1739783885342,0.7748,2722.6,2722.2,3.67339]
[1739783885644,0.7748,2723.1,2722.7,3.67274]
[1739783886206,0.279,2723.2,2723.0,3.67231]
[1739783886799,0.7623,2723.4,2722.5,3.67309]
[1739783886949,0.7623,2723.4,2723.3,3.67201]
[1739783887144,9.325,2723.7,2723.3,3.67199]
[1739783887443,9.325,2723.7,2723.2,3.67207]
[1739783887744,9.046,2723.7,2723.2,3.67207]
[1739783887943,8.254,2723.7,2723.6,3.67161]
[1739783888676,8.254,2723.7,2723.5,4.48003]
[1739783888976,1.52733848,2724.5,2723.5,0.8084]
[1739783889277,2.18341266,2724.5,2723.8,3.67129]
[1739783889504,4.4523,2724.5,2723.9,3.67118]
[1739783890505,0.7819,2724.5,2724.0,3.67102]
[1739783891273,4.73131,2724.5,2724.0,3.67102]
[1739783891491,4.73131,2724.5,2723.8,3.67125]
[1739783891694,0.473131,2724.4,2724.1,0.04864656]
[1739783891893,1.0609,2724.5,2724.0,3.67097]
[1739783892205,1.0609,2724.5,2724.2,3.67071]
[1739783892381,3.0,2724.8,2724.3,0.8248]
[1739783892583,0.279,2724.9,2724.4,3.67041]
[1739783892904,0.474962,2724.8,2724.5,3.67038]
[1739783893481,0.474962,2724.8,2724.6,0.04798757]
[1739783893876,3.67012,2724.7,2724.1,3.6709]
[1739783894402,3.67034,2724.6,2723.9,3.67111]
[1739783894590,3.67034,2724.6,2724.0,3.67096]
[1739783894786,3.67034,2724.6,2723.9,3.67107]
[1739783895107,0.8211,2724.2,2723.7,3.67141]
[1739783895300,3.67096,2724.1,2723.5,3.67167]
[1739783895493,3.67096,2724.1,2723.5,7.34333]
[1739783895693,3.94996,2724.1,2723.5,3.67166]
[1739783895899,3.67129,2723.9,2723.3,3.67195]
[1739783896299,0.8033,2723.8,2723.3,3.67195]
[1739783897110,4.47464,2723.8,2723.3,3.67195]
[1739783897319,3.67148,2723.7,2723.1,3.67221]
[1739783897523,3.67148,2723.7,2723.1,3.67219]
[1739783897726,3.67174,2723.5,2722.9,0.7682]
[1739783897917,3.67174,2723.5,2723.0,3.67234]
[1739783898448,4.486087,2723.7,2722.9,0.7682]
[1739783898449,0.814607,2723.7,2722.9,0.7682]
[1739783898641,0.8033,2723.8,2723.2,3.67205]
[1739783898947,0.8033,2723.8,2723.3,3.672]
[1739783899442,4.47465,2723.8,2723.2,3.67205]
[1739783899644,3.67149,2723.7,2723.2,3.67205]
[1739783901146,3.67182,2723.5,2723.0,3.67233]
[1739783901445,3.67182,2723.5,2722.6,1.54714882]
[1739783901446,1.135049,2723.6,2722.6,0.8321]
[1739783901596,3.85679008,2723.9,2723.5,3.67174]
[1739783901597,0.7945,2723.9,2723.5,3.67174]
[1739783901932,4.46571,2723.9,2723.3,7.34386]
[1739783902114,5.73028268,2723.9,2723.4,3.67186]
[1739783902315,5.73028268,2723.9,2723.2,3.67208]
[1739783902517,3.67148,2723.7,2723.2,3.67208]
[1739783902721,5.73028268,2723.9,2723.3,3.67191]
[1739783902909,5.73028268,2723.9,2723.4,3.67187]
[1739783903107,0.62073887,2723.8,2723.2,3.67208]
[1739783903305,0.62073887,2723.8,2723.2,3.67202]
[1739783903504,0.279,2723.7,2723.2,3.67202]
[1739783903734,0.7945,2723.9,2723.1,0.757]
[1739783904026,1.0735,2723.9,2723.6,3.67154]
[1739783904240,1.0735,2723.9,2723.7,3.67142]
[1739783904410,12.86543,2723.8,2723.0,3.67228]
[1739783904609,0.7743,2723.6,2723.0,3.67228]
[1739783904934,0.7743,2723.6,2723.1,3.67228]
[1739783905249,0.7743,2722.9,2721.9,0.8018]
[1739783905400,3.95176,2722.8,2722.2,3.67341]
[1739783905601,3.67283,2722.7,2722.2,3.67341]
[1739783905805,7.62456,2722.8,2722.2,3.67341]
[1739783905997,4.791646,2722.8,2722.1,3.6736]
[1739783906202,8.464446,2722.8,2722.2,3.67349]
[1739783906423,4.791646,2722.8,2722.3,3.67336]
[1739783906623,4.791646,2722.8,2722.2,3.67349]
[1739783907016,8.464446,2722.8,2722.3,0.03814201]
[1739783907516,3.67286,2722.7,2722.3,0.03814201]
[1739783907738,4.791646,2722.8,2722.3,0.03814201]
[1739783907920,3.67297,2722.6,2722.0,3.67368]
[1739783908108,4.791646,2722.8,2722.4,0.03814201]
[1739783908318,4.791646,2722.8,2722.2,3.67341]
[1739783908512,4.791646,2722.8,2722.5,0.03814201]
[1739783908707,4.791646,2722.8,2722.2,3.67341]
[1739783909341,4.791646,2722.8,2722.3,0.03814201]
[1739783910037,0.7689,2722.6,2722.3,0.03814201]
[1739783910207,0.7689,2722.6,2721.6,4.43066]
[1739783910406,0.7689,2722.6,2721.9,3.67386]
[1739783910602,0.7689,2722.6,2722.0,3.67372]
[1739783910837,0.7689,2722.6,2722.2,3.67349]
[1739783911134,0.7689,2722.6,2722.2,3.67339]
[1739783911343,0.7689,2722.6,2722.3,0.03814201]
[1739783911702,0.7689,2722.6,2722.0,3.67368]
[1739783911703,4.44198,2722.6,2722.0,7.34736]
[1739783911901,3.67309,2722.5,2722.4,0.03814201]
[1739783912106,3.67309,2722.5,2722.0,3.67368]
[1739783912340,4.484597,2722.5,2722.4,0.03814201]
[1739783912838,4.484597,2722.5,2721.9,3.67382]
[1739783913019,4.484597,2722.5,2722.0,0.03814201]
[1739783913215,0.811507,2722.5,2722.0,0.03814201]
[1739783913422,0.811507,2722.5,2722.0,3.67372]
[1739783913640,0.811507,2722.5,2722.1,0.03814201]
[1739783914236,0.7689,2722.6,2722.2,3.67348]
[1739783914449,4.44188,2722.6,2722.0,0.7511]
[1739783914640,0.7689,2722.6,2722.0,0.7511]
[1739783914840,0.279,2722.5,2722.2,3.67339]
[1739783915142,0.8002,2722.9,2722.4,3.67322]
[1739783915368,0.279,2722.8,2722.4,3.67322]
[1739783915562,0.279,2722.8,2722.2,3.67339]
[1739783915772,3.95171,2722.8,2722.5,0.03814201]
[1739783915925,3.95171,2722.8,2722.3,3.67334]
[1739783915926,5.32815,2722.8,2722.3,3.67334]
[1739783916452,0.8002,2722.9,2722.4,0.03912322]
[1739783916626,0.279,2722.8,2722.6,3.67295]
[1739783917015,9.0549,2723.1,2722.7,3.71191322]
[1739783917215,8.254,2723.1,2722.8,3.67267]
[1739783917754,8.254,2723.1,2722.9,0.03912322]
[1739783917939,8.254,2723.1,2722.8,3.67267]
[1739783918141,8.254,2723.1,2723.0,0.04010423]
[1739783918326,8.254,2723.1,2722.8,3.67267]
[1739783918653,8.254,2723.1,2723.0,0.04010423]
[1739783918852,8.254,2723.1,2722.8,3.67267]
[1739783919015,8.254,2723.1,2723.0,0.04010423]
[1739783919219,8.254,2723.1,2722.6,4.50566]
[1739783919484,8.254,2723.1,2722.7,3.67273]
[1739783919614,8.254,2723.1,2722.2,3.67347]
[1739783919615,3.67242,2723.0,2722.4,3.67311]
[1739783919814,13.146903,2723.1,2722.4,3.67311]
[1739783919815,0.7938,2722.9,2722.4,3.67311]
[1739783920020,4.46638,2722.9,2722.4,3.67311]
[1739783920233,0.7938,2722.9,2722.5,0.03996291]
[1739783920432,5.8604503,2722.9,2722.3,3.67333]
[1739783920650,3.67282,2722.7,2722.4,0.03996291]
[1739783920853,7.34572,2722.7,2722.1,3.6735]
[1739783921160,7.34572,2722.7,2722.2,0.03996291]
[1739783921161,3.67299,2722.6,2722.2,0.03996291]
[1739783921451,7.34573,2722.7,2722.2,0.03996291]
[1739783921626,4.97394993,2722.7,2722.2,0.03996291]
[1739783922226,3.67307,2722.6,2722.2,0.03996291]
[1739783922457,0.7736,2722.5,2722.2,0.03996291]
[1739783923336,1.0526,2722.5,2722.2,0.03996291]
[1739783923666,1.0526,2722.5,2722.1,3.67363]
[1739783923832,1.0526,2722.5,2722.2,0.04022987]
[1739783923833,1.525158,2722.5,2722.2,0.04022987]
[1739783924035,1.525158,2722.5,2722.1,3.67362]
[1739783924371,1.0526,2722.5,2722.2,3.71368987]
[1739783924571,1.0526,2722.5,2722.2,0.04022987]
[1739783925937,0.7736,2722.5,2722.2,3.71368987]
[1739783926275,0.7608,2722.1,2720.8,0.8032]
[1739783926497,3.67349,2722.2,2720.8,0.8032]
[1739783926498,0.7608,2721.8,2720.8,0.8032]
[1739783926636,3.67445,2721.5,2720.8,4.47845]
[1739783926836,0.7608,2721.3,2720.8,4.47845]
[1739783927475,0.794,2721.6,2720.8,0.8032]
[1739783927636,0.794,2721.6,2720.9,3.67512]
[1739783927637,4.46831,2721.6,2720.9,3.67512]
[1739783927836,3.67456,2721.5,2720.9,3.67512]
[1739783928056,3.67456,2721.5,2720.8,0.8032]
[1739783928371,0.7512,2721.2,2720.5,4.46068]
[1739783928548,0.7512,2721.2,2720.8,3.67526]
[1739783928977,0.7512,2721.2,2720.9,3.67515]
[1739783929136,0.7512,2721.2,2720.9,3.67512]
[1739783929469,0.808,2721.5,2721.1,3.67497]
[1739783929674,1.3683576,2721.5,2721.1,3.67497]
[1739783930544,1.3683576,2721.5,2720.6,3.67558]
[1739783930545,0.279,2721.5,2721.4,3.67449]
[1739783930777,0.279,2721.5,2721.2,3.67476]
[1739783930977,0.279,2721.5,2721.3,3.67463]
[1739783931290,0.808,2721.9,2721.6,3.67426]
[1739783931777,0.808,2721.9,2721.6,3.6742]
[1739783932984,0.808,2721.9,2721.6,7.34841]
[1739783933485,0.279,2722.0,2721.6,3.6742]
[1739783933660,0.279,2722.0,2721.7,3.67407]
[1739783933863,0.83381571,2722.0,2721.7,3.67407]
[1739783934765,0.83381571,2722.0,2721.6,3.6742]
[1739783934965,0.279,2722.0,2721.8,3.674]
[1739783936551,9.01323,2722.4,2721.4,0.8115]
[1739783936552,0.8045,2722.4,2721.5,3.67444]
[1739783936757,0.8045,2722.7,2722.4,3.67312]
[1739783936980,1.0835,2722.7,2722.4,3.67312]
[1739783937166,1.6227213,2722.7,2722.4,3.67312]
[1739783937682,1.3437213,2722.7,2722.4,3.67312]
[1739783937890,1.3437213,2722.7,2722.2,3.67342]
[1739783938181,1.3437213,2722.7,2722.0,0.785]
[1739783938383,1.3437213,2722.7,2722.2,3.67349]
[1739783938584,1.3437213,2722.7,2722.2,3.67342]
[1739783938754,0.8045,2722.7,2722.4,3.67314]
[1739783938954,0.63616298,2722.9,2722.7,3.67274]
[1739783939158,0.91516298,2722.9,2722.6,3.67287]
[1739783939976,0.91516298,2722.9,2722.6,7.34571]
[1739783940203,0.91516298,2722.9,2722.6,3.67284]
[1739783940371,0.63616298,2722.9,2722.6,3.67284]
[1739783940889,0.63616298,2722.9,2722.8,3.67268]
[1739783941081,0.63616298,2722.9,2722.1,3.67363]
[1739783941277,0.63616298,2722.9,2722.6,3.67295]
[1739783942492,0.63616298,2722.9,2722.6,3.67288]
[1739783942858,0.63616298,2722.9,2722.8,3.67268]
[1739783943061,0.63616298,2722.9,2722.6,3.67286]
[1739783943499,0.63616298,2722.9,2722.2,0.445863]
[1739783943794,0.63616298,2722.9,2722.6,3.67295]
[1739783944357,0.63616298,2722.9,2722.6,3.67285]
[1739783944556,0.63616298,2722.9,2722.4,3.67313]
[1739783944805,0.63616298,2722.9,2722.5,3.67305]
[1739783945220,0.63616298,2722.9,2722.2,3.67336]
[1739783945510,1.62858928,2722.9,2722.4,3.67314]
[1739783945676,1.62858928,2722.9,2722.5,3.67301]
[1739783945894,1.62858928,2722.9,2722.4,3.67314]
[1739783946086,5.30115928,2722.9,2722.4,3.67314]
[1739783946288,1.62858928,2722.9,2722.5,3.67296]
[1739783946492,1.62858928,2722.9,2722.6,3.67295]
[1739783946693,3.0,2722.6,2720.6,0.8152]
[1739783946889,4.43161,2721.8,2721.1,3.67491]
[1739783947136,4.43161,2721.8,2720.6,0.8152]
[1739783947137,3.47806437,2721.6,2720.6,0.8152]
[1739783947343,0.7951,2721.2,2720.7,3.94447859]
[1739783947631,0.7951,2721.2,2720.7,0.26897859]
[1739783948213,0.7951,2721.2,2720.7,3.94448859]
[1739783948481,0.7951,2721.2,2720.7,0.26897859]
[1739783949033,0.7951,2721.2,2720.3,7.47489]
[1739783949327,0.7951,2721.2,2720.8,3.67528]
[1739783951899,0.281,2721.8,2721.3,7.34928]
[1739783952095,0.281,2721.8,2721.4,3.67456]
[1739783953229,0.281,2721.8,2721.3,3.6746]
[1739783953431,0.676491,2721.8,2721.3,3.6746]
[1739783953782,0.281,2721.8,2721.5,3.67443]
[1739783954298,0.281,2722.1,2721.7,3.67417]
[1739783954570,0.281,2722.1,2721.6,3.67429]
[1739783954698,0.756722,2722.1,2721.6,3.67429]
[1739783955033,0.475722,2722.1,2721.5,0.801]
[1739783955184,1.0838,2722.2,2721.9,3.67385]
[1739783955587,0.764,2722.5,2722.1,3.67363]
[1739783955788,1.045,2722.5,2722.1,3.67363]
[1739783957013,1.045,2722.5,2722.1,7.34718]
[1739783957183,0.764,2722.5,2722.1,3.67354]
[1739783957382,0.281,2722.6,2721.6,0.55]
[1739783957609,0.281,2722.6,2722.4,3.67322]
[1739783957823,0.281,2722.6,2722.3,3.67334]
[1739783957996,0.7604,2722.8,2722.3,3.67334]
[1739783958197,0.60615493,2722.7,2722.3,3.67334]
[1739783958400,1.0414,2722.8,2722.4,3.67321]
[1739783958645,1.0414,2722.8,2722.4,3.67312]
[1739783958810,1.0414,2722.8,2722.5,3.67309]
[1739783959182,1.0414,2722.8,2722.4,3.67312]
[1739783960107,1.0414,2722.8,2722.5,3.67309]
[1739783960445,0.281,2722.8,2722.4,3.67312]
[1739783960587,0.281,2722.8,2722.5,3.67307]
[1739783962243,0.281,2722.8,2722.7,3.67282]
[1739783962541,0.281,2722.8,2722.6,3.67292]
[1739783963132,0.281,2722.8,2722.7,3.67282]
[1739783963325,0.63616298,2722.9,2722.8,3.67268]
[1739783964443,8.254,2723.1,2722.9,3.67251]
[1739783964657,8.254,2723.1,2722.7,3.67269]
[1739783964865,8.254,2723.1,2722.8,3.67268]
[1739783965021,8.254,2723.1,2722.7,3.67269]
[1739783965356,8.254,2723.1,2722.9,3.67255]
[1739783965574,8.254,2723.1,2722.8,3.67268]
[1739783965739,9.446608,2723.1,2722.7,3.67269]
[1739783965943,0.7928,2723.0,2722.8,3.67259]
[1739783966433,0.7928,2723.0,2722.9,3.67255]
[1739783966647,8.254,2723.1,2723.0,3.67242]
[1739783966879,8.254,2723.1,2722.5,3.673]
[1739783967163,3.67242,2723.0,2722.3,9.83045]
[1739783967341,5.678791,2723.0,2722.3,3.67325]
[1739783967543,3.67264,2722.9,2722.4,3.67322]
[1739783967736,0.7818,2722.8,2722.2,3.6734]
[1739783967941,4.45458,2722.8,2722.2,3.67349]
[1739783968278,0.7818,2722.8,2722.2,3.67349]
[1739783968490,4.118275,2722.7,2722.2,3.67349]
[1739783968627,4.118275,2722.7,2722.0,3.67368]
[1739783968977,3.6732,2722.5,2722.0,3.67368]
[1739783969326,4.50164,2722.4,2721.8,3.67395]
[1739783969943,0.8283,2722.2,2721.3,3.67469]
[1739783970130,0.450167,2722.1,2721.6,3.6743]
[1739783970323,0.8283,2722.2,2721.0,7.15451166]
[1739783970540,0.8283,2722.2,2721.7,3.67407]
[1739783970772,0.8283,2722.2,2721.8,3.67403]
[1739783970981,0.8283,2722.2,2721.5,0.7508]
[1739783971275,0.8283,2722.2,2721.8,3.67392]
[1739783971582,0.8283,2722.2,2721.9,3.67387]
[1739783971724,0.8283,2722.2,2722.0,3.67373]
[1739783972192,0.8283,2722.2,2721.9,3.67381]
[1739783975201,0.8283,2722.2,2721.5,7.4252]
[1739783975344,0.8283,2722.2,2721.9,3.67383]
[1739783977101,0.8283,2722.2,2721.7,3.67409]
[1739783977579,0.8283,2722.2,2721.8,3.67396]
[1739783978384,0.8283,2722.2,2721.7,3.67409]
[1739783978701,0.8283,2722.2,2721.8,3.67396]
[1739783979081,0.281,2722.4,2721.5,3.7508]
[1739783979265,0.281,2722.4,2722.1,3.6736]
[1739783980200,0.281,2722.4,2721.9,7.34767]
[1739783980412,3.95424,2722.4,2721.9,3.67382]
[1739783980554,0.281,2722.4,2722.0,3.6737]
[1739783980755,0.281,2722.4,2722.0,3.67376]
[1739783981103,0.281,2722.4,2721.9,3.67382]
[1739783981305,0.281,2722.4,2722.0,3.67365]
[1739783981659,0.281,2722.4,2722.1,7.34713]
[1739783982059,0.281,2722.4,2722.1,3.67355]
[1739783982290,0.7868,2722.8,2721.7,3.8033]
[1739783982504,0.279,2722.7,2722.2,3.67344]
[1739783983204,3.95183,2722.7,2722.2,3.67344]
[1739783983805,3.95183,2722.7,2722.2,3.67342]
[1739783984106,0.279,2722.7,2722.3,3.67323]
[1739783984522,0.279,2723.1,2722.3,0.734665]
[1739783984653,0.279,2723.1,2722.8,7.34522]
[1739783985004,0.279,2723.1,2722.8,7.34521]
[1739783985306,0.279,2723.1,2722.8,3.6726]
[1739783985476,0.279,2723.1,2722.7,3.67281]
[1739783987558,0.279,2723.1,2722.6,7.34577]
[1739783987877,0.279,2723.1,2722.7,3.67278]
[1739783988257,0.7718,2723.2,2722.8,3.67261]
[1739783988462,0.7718,2723.2,2722.8,3.6726]
[1739783988810,4.44396,2723.2,2722.8,3.6726]
[1739783989157,4.44396,2723.2,2722.7,3.67281]
[1739783989594,0.7718,2723.2,2722.6,3.67287]
[1739783989753,0.7718,2723.2,2722.8,3.67266]
[1739783990798,0.7718,2723.2,2722.6,7.34567]
[1739783990799,4.44396,2723.2,2722.6,7.34567]
[1739783991093,3.67252,2723.0,2722.4,3.67316]
[1739783991294,4.47073,2722.6,2722.0,3.67365]
[1739783991498,0.7977,2722.6,2722.0,3.67365]
[1739783991661,0.7977,2722.6,2722.1,3.6735]
[1739783991862,0.7977,2722.6,2721.8,0.7906]
[1739783992187,0.7977,2722.6,2722.4,3.67315]
[1739783992695,0.7977,2722.6,2722.3,3.67326]
[1739783993087,0.7977,2722.6,2721.9,3.67382]
[1739783993294,7.34659,2722.4,2721.8,3.674]
[1739783993599,0.804,2722.3,2721.7,3.67405]
[1739783993811,3.67351,2722.2,2721.7,3.67405]
[1739783994513,4.47743,2722.3,2721.7,3.67405]
[1739783994668,5.292497,2722.3,2721.7,3.67405]
[1739783995111,1.619067,2722.3,2721.7,3.67405]
[1739783995293,3.67351,2722.2,2721.7,3.67405]
[1739783996191,5.292477,2722.3,2721.8,3.67403]
[1739783996507,5.292497,2722.3,2721.7,3.67405]
[1739783997084,5.292497,2722.3,2721.7,7.34814]
[1739783997289,5.292497,2722.3,2721.7,3.67405]
[1739783998018,1.619067,2722.3,2721.8,3.67394]
[1739783998220,0.804,2722.3,2721.9,3.67384]
[1739783998431,0.804,2722.3,2722.0,3.67369]
[1739783999148,0.804,2722.3,2722.1,3.67355]
[1739783999315,0.7522,2722.6,2721.5,0.7906]
[1739783999651,3.67317,2722.5,2721.9,3.6738]
[1739783999851,4.143607,2722.5,2721.9,3.6738]
[1739784000155,0.749437,2722.5,2722.1,3.67353]
[1739784000936,0.7522,2722.6,2721.8,0.55]
[1739784001136,5.34,2722.8,2722.5,3.67309]
[1739784001137,0.7731,2722.8,2722.5,3.67309]
[1739784001316,0.279,2722.8,2722.5,3.67302]
[1739784001505,0.279,2722.8,2722.4,3.6732]
[1739784001907,0.279,2722.8,2722.7,3.67282]
[1739784002453,3.75736665,2722.8,2722.2,3.7938]
[1739784002609,3.75736665,2722.8,2721.3,0.18517019]
[1739784002610,0.7795,2722.7,2721.8,9.6638]
[1739784002964,4.45746,2722.4,2721.8,3.674]
[1739784003123,3.67352,2722.2,2721.7,3.67417]
[1739784003643,3.67352,2722.2,2721.3,3.67469]
[1739784003644,0.7586,2721.9,2721.3,3.67469]
[1739784003962,1.0376,2721.9,2721.3,7.34925]
[1739784004109,1.0376,2721.9,2721.5,3.67435]
[1739784004464,1.0376,2721.9,2721.7,3.67415]
[1739784004661,1.0376,2721.9,2721.6,3.6742]
[1739784004803,1.0376,2721.9,2721.8,3.67403]
[1739784005007,6.1356,2722.4,2722.0,3.67376]
[1739784005202,7.144367,2722.4,2721.6,0.8131]
[1739784005409,3.67343,2722.3,2721.6,3.6743]
[1739784005708,3.67343,2722.3,2721.7,3.67414]
[1739784006010,3.67343,2722.3,2721.7,3.67405]
[1739784006214,3.67343,2722.3,2721.8,3.67401]
[1739784006544,7.144367,2722.4,2722.0,3.67367]
[1739784007320,6.1356,2722.4,2722.0,3.67367]
[1739784007546,6.1356,2722.4,2722.1,3.67359]
[1739784008348,6.1356,2722.4,2721.8,0.7564]
[1739784008349,0.7956,2722.4,2721.8,0.7564]
[1739784008646,1.1049,2722.7,2721.8,0.7564]
[1739784008818,1.1049,2722.7,2722.3,3.67329]
[1739784009013,1.1049,2722.7,2722.2,3.67336]
[1739784009647,4.77773,2722.7,2722.2,3.67336]
[1739784009960,0.477773,2722.6,2722.0,3.67369]
[1739784010258,0.477773,2722.6,2722.4,3.67322]
[1739784010421,0.8259,2722.7,2722.4,3.67322]
[1739784010822,0.8259,2722.7,2722.2,3.67344]
[1739784011029,0.8259,2722.7,2722.2,3.67338]
[1739784011232,4.49873,2722.7,2722.2,3.67338]
[1739784011646,0.8259,2722.7,2722.3,3.67332]
[1739784011840,1.65148667,2722.7,2722.2,3.67347]
[1739784012031,1.65148667,2722.7,2722.4,3.6732]
[1739784012451,1.65148667,2722.7,2721.8,4.43036]